fUST/lending_fUST_20260602
["ID","MTS","AMOUNT","RATE_DAILY","PERIOD"]
[423748536,1780380648000,-724.61,0.00016438,2]
[423748538,1780380648000,-547.150648,0.00016464,2]
[423748534,1780380648000,-500.0,0.00016438,2]
[423748546,1780380648000,-203.211909,0.00016464,2]
[423748545,1780380648000,-699.109966,0.00016464,2]
[423748532,1780380648000,-639.34,0.00016438,2]
[423748543,1780380648000,-325.643928,0.00016464,2]
[423748530,1780380648000,-2813.11,0.00016438,2]
[423748524,1780380648000,-724.61,0.0001589,2]
[423748521,1780380648000,-724.61,0.00015068,2]
[423748520,1780380648000,-724.61,0.00014794,2]
[423748519,1780380648000,-300.24710391,0.0001452,2]
[423748514,1780380648000,-500.0,0.00012598,2]
[423748523,1780380648000,-724.61,0.00015616,2]
[423748522,1780380648000,-724.61,0.00015342,2]
[423748517,1780380648000,-500.0,0.00012598,2]
[423748528,1780380648000,-500.0,0.00016438,2]
[423748578,1780380648000,-2116.23939946,0.000167,2]
[423748526,1780380648000,-225.93250197,0.00016438,2]
[423748525,1780380648000,-724.61,0.00016164,2]
[423748516,1780380648000,-500.0,0.00012598,2]
[423748515,1780380648000,-500.0,0.00012598,2]
[423748513,1780380648000,-500.0,0.00012598,2]
[423748512,1780380648000,-73.08744182,0.00012598,2]
[423748549,1780380648000,-1427.349516,0.00016464,2]
[423748547,1780380648000,-2709.109381,0.00016464,2]
[423748518,1780380648000,-3196.846956,0.00013561,2]
[423748561,1780380648000,-323.77915228,0.00016504,2]
[423748571,1780380648000,-209.544202,0.00016562,2]
[423748572,1780380648000,-564.519409,0.00016562,2]
[423748576,1780380648000,-824.0,0.00016619,2]
[423748577,1780380648000,-150.37,0.000167,2]
[423748574,1780380648000,-10090.12456172,0.000166,2]
[423748575,1780380648000,-1721.13219305,0.000166,2]
[423748570,1780380648000,-176.706007,0.00016562,2]
[423748569,1780380648000,-508.067469,0.00016562,2]
[423748567,1780380648000,-333.52389609,0.00016522,2]
[423748568,1780380648000,-369.71533876,0.00016522,2]
[423748566,1780380648000,-366.57821221,0.00016522,2]
[423748564,1780380648000,-824.0,0.00016516,2]
[423748565,1780380648000,-329.84744277,0.00016522,2]
[423748556,1780380648000,-340.25601181,0.00016501,2]
[423748562,1780380648000,-372.68432094,0.00016504,2]
[423748559,1780380648000,-172.24509647,0.00016504,2]
[423748550,1780380648000,-209.544203,0.00016464,2]
[423748555,1780380648000,-151.0,0.000165,2]
[423748553,1780380648000,-437.44948961,0.00016494,2]
[423748563,1780380648000,-357.62507351,0.00016504,2]
[423748554,1780380648000,-1721.13219305,0.000165,2]
[423748557,1780380648000,-182.31785082,0.00016504,2]
[423748558,1780380648000,-389.00278242,0.00016504,2]
[423748560,1780380648000,-243.53997298,0.00016504,2]
[423748552,1780380648000,-154.84247782,0.00016494,2]
[423748551,1780380648000,-325.643927,0.00016464,2]
[423748581,1780380691000,5009.84787752,0.00022859,30]
[423748699,1780381780000,-5000.0,0.00010566,2]
[423748698,1780381780000,-157.00689163,0.0001046,2]
[423748701,1780381790000,-152.0,0.00011339,7]
[423748700,1780381790000,-5000.0,0.00011226,2]
[423748703,1780381799000,-39486.09991834,0.000124,2]
[423748702,1780381799000,-204.89319003,0.000124,2]
[423748719,1780381831000,-269.22927864,0.00011592,2]
[423748720,1780381832000,-9621.92417499,0.00011592,2]
[423748804,1780381838000,-5108.84654637,0.00011592,2]
[423748833,1780381838000,-500.0,0.00013698,2]
[423748829,1780381838000,-171.25012711,0.00013439,2]
[423748828,1780381838000,-362.61445164,0.00013353,7]
[423748834,1780381838000,-500.0,0.00013698,2]
[423748827,1780381838000,-2656.1739969,0.00013351,2]
[423748838,1780381838000,-500.0,0.00013698,2]
[423748830,1780381838000,-420.0,0.00013606,2]
[423748823,1780381838000,-1681.658,0.00013105,2]
[423748819,1780381838000,-1463.60338572,0.00012871,7]
[423748822,1780381838000,-2206.0,0.00013105,2]
[423748824,1780381838000,-197.286,0.00013105,2]
[423748821,1780381838000,-3291.071,0.00013105,2]
[423748818,1780381838000,-146687.1247813,0.000125,2]
[423748820,1780381838000,-171.25012711,0.00013005,2]
[423748813,1780381838000,-300.0,0.00012399,2]
[423748817,1780381838000,-210.5348369,0.00012498,2]
[423748816,1780381838000,-566382.95258651,0.000124,2]
[423748826,1780381838000,-153.9384775,0.00013202,2]
[423748825,1780381838000,-446.986,0.00013105,2]
[423748815,1780381838000,-528.19400653,0.00012399,2]
[423748812,1780381838000,-300.0,0.00012399,2]
[423748809,1780381838000,-500.0,0.00012398,2]
[423748811,1780381838000,-169.50983621,0.00012398,2]
[423748808,1780381838000,-614.99214274,0.00012398,2]
[423748807,1780381838000,-500.0,0.00012398,2]
[423748810,1780381838000,-500.0,0.00012398,2]
[423748806,1780381838000,-5000.0,0.00012275,2]
[423748805,1780381838000,-152.0,0.00012064,7]
[423748803,1780381838000,-3162.56980529,0.00011476,2]
[423748839,1780381838000,-500.0,0.00013698,2]
[423748814,1780381838000,-1200.0,0.00012399,2]
[423748831,1780381838000,-253.0,0.00013639,2]
[423748802,1780381838000,-1837.43019471,0.00011476,2]
[423748836,1780381838000,-500.0,0.00013698,2]
[423748855,1780381838000,-500.0,0.00013698,2]
[423748857,1780381838000,-500.0,0.00013698,2]
[423748860,1780381838000,-408.78535684,0.00013698,2]
[423748858,1780381838000,-500.0,0.00013698,2]
[423748862,1780381838000,-500.0,0.00013698,2]
[423748859,1780381838000,-500.0,0.00013698,2]
[423748852,1780381838000,-500.0,0.00013698,2]
[423748861,1780381838000,-500.0,0.00013698,2]
[423748865,1780381838000,-500.0,0.00013698,2]
[423748863,1780381838000,-500.0,0.00013698,2]
[423748869,1780381838000,-500.0,0.00013698,2]
[423748867,1780381838000,-500.0,0.00013698,2]
[423748868,1780381838000,-500.0,0.00013698,2]
[423748832,1780381838000,-500.0,0.00013698,2]
[423748866,1780381838000,-500.0,0.00013698,2]
[423748856,1780381838000,-500.0,0.00013698,2]
[423748864,1780381838000,-500.0,0.00013698,2]
[423748853,1780381838000,-500.0,0.00013698,2]
[423748854,1780381838000,-500.0,0.00013698,2]
[423748835,1780381838000,-500.0,0.00013698,2]
[423748837,1780381838000,-500.0,0.00013698,2]
[423748840,1780381838000,-500.0,0.00013698,2]
[423748841,1780381838000,-1660.3,0.00013698,2]
[423748843,1780381838000,-501.43589391,0.00013698,2]
[423748851,1780381838000,-500.0,0.00013698,2]
[423748850,1780381838000,-500.0,0.00013698,2]
[423748842,1780381838000,-500.0,0.00013698,2]
[423748845,1780381838000,-500.0,0.00013698,2]
[423748846,1780381838000,-501.02343158,0.00013698,2]
[423748844,1780381838000,-500.0,0.00013698,2]
[423748847,1780381838000,-500.0,0.00013698,2]
[423748848,1780381838000,-500.0,0.00013698,2]
[423748849,1780381838000,-500.0,0.00013698,2]
[423748901,1780381839000,-500.0,0.00013698,2]
[423748900,1780381839000,-500.0,0.00013698,2]
[423748899,1780381839000,-500.0,0.00013698,2]
[423748892,1780381839000,-500.0,0.00013698,2]
[423748898,1780381839000,-500.0,0.00013698,2]
[423748893,1780381839000,-500.0,0.00013698,2]
[423748896,1780381839000,-500.0,0.00013698,2]
[423748895,1780381839000,-500.0,0.00013698,2]
[423748902,1780381839000,-493.20192118,0.00013698,2]
[423748909,1780381839000,-500.0,0.00013698,2]
[423748903,1780381839000,-500.0,0.00013698,2]
[423748908,1780381839000,-500.0,0.00013698,2]
[423748905,1780381839000,-500.0,0.00013698,2]
[423748912,1780381839000,-500.0,0.00013698,2]
[423748911,1780381839000,-500.0,0.00013698,2]
[423748907,1780381839000,-500.0,0.00013698,2]
[423748910,1780381839000,-500.0,0.00013698,2]
[423748894,1780381839000,-500.0,0.00013698,2]
[423748897,1780381839000,-500.0,0.00013698,2]
[423748891,1780381839000,-500.0,0.00013698,2]
[423748872,1780381839000,-500.0,0.00013698,2]
[423748881,1780381839000,-500.0,0.00013698,2]
[423748875,1780381839000,-500.0,0.00013698,2]
[423748874,1780381839000,-626.14663571,0.00013698,2]
[423748870,1780381839000,-500.0,0.00013698,2]
[423748873,1780381839000,-500.0,0.00013698,2]
[423748913,1780381839000,-501.28040686,0.00013698,2]
[423748871,1780381839000,-500.0,0.00013698,2]
[423748877,1780381839000,-500.0,0.00013698,2]
[423748878,1780381839000,-500.0,0.00013698,2]
[423748889,1780381839000,-500.0,0.00013698,2]
[423748876,1780381839000,-500.0,0.00013698,2]
[423748888,1780381839000,-455.82870748,0.00013698,2]
[423748887,1780381839000,-500.0,0.00013698,2]
[423748880,1780381839000,-500.0,0.00013698,2]
[423748879,1780381839000,-500.0,0.00013698,2]
[423748882,1780381839000,-500.0,0.00013698,2]
[423748884,1780381839000,-500.0,0.00013698,2]
[423748883,1780381839000,-500.0,0.00013698,2]
[423748886,1780381839000,-500.0,0.00013698,2]
[423748885,1780381839000,-500.0,0.00013698,2]
[423748890,1780381839000,-501.78537629,0.00013698,2]
[423748906,1780381839000,-500.0,0.00013698,2]
[423748943,1780381839000,-500.0,0.00013698,2]
[423748915,1780381839000,-500.0,0.00013698,2]
[423748937,1780381839000,-500.0,0.00013698,2]
[423748932,1780381839000,-568.01736638,0.00013698,2]
[423748935,1780381839000,-500.0,0.00013698,2]
[423748914,1780381839000,-500.0,0.00013698,2]
[423748942,1780381839000,-500.0,0.00013698,2]
[423748944,1780381839000,-444.10376769,0.00013698,2]
[423748945,1780381839000,-55.89623231,0.00013698,2]
[423748948,1780381839000,-323.97710403,0.00013698,2]
[423748938,1780381839000,-500.0,0.00013698,2]
[423748950,1780381839000,-512.34,0.00013698,2]
[423748946,1780381839000,-372.57376769,0.00013698,2]
[423748947,1780381839000,-127.42623231,0.00013698,2]
[423748951,1780381839000,-504.24480092,0.00013698,2]
[423748952,1780381839000,-500.0,0.00013698,2]
[423748954,1780381839000,-500.0,0.00013698,2]
[423748953,1780381839000,-500.0,0.00013698,2]
[423748956,1780381839000,-195.99710514,0.00013698,2]
[423748955,1780381839000,-500.0,0.00013698,2]
[423748949,1780381839000,-176.02289597,0.00013698,2]
[423748940,1780381839000,-500.0,0.00013698,2]
[423748936,1780381839000,-500.0,0.00013698,2]
[423748939,1780381839000,-503.16438462,0.00013698,2]
[423748904,1780381839000,-500.0,0.00013698,2]
[423748918,1780381839000,-500.0,0.00013698,2]
[423748928,1780381839000,-502.04602893,0.00013698,2]
[423748916,1780381839000,-500.0,0.00013698,2]
[423748927,1780381839000,-500.29411198,0.00013698,2]
[423748929,1780381839000,-501.67497614,0.00013698,2]
[423748925,1780381839000,-1000.0,0.00013698,2]
[423748921,1780381839000,-504.17099299,0.00013698,2]
[423748919,1780381839000,-500.0,0.00013698,2]
[423748924,1780381839000,-500.0,0.00013698,2]
[423748917,1780381839000,-500.0,0.00013698,2]
[423748920,1780381839000,-500.0,0.00013698,2]
[423748926,1780381839000,-349.90902062,0.00013698,2]
[423748922,1780381839000,-500.0,0.00013698,2]
[423748930,1780381839000,-500.0,0.00013698,2]
[423748933,1780381839000,-500.0,0.00013698,2]
[423748941,1780381839000,-508.24,0.00013698,2]
[423748934,1780381839000,-424.51039848,0.00013698,2]
[423748931,1780381839000,-500.0,0.00013698,2]
[423748923,1780381839000,-500.0,0.00013698,2]
[423748982,1780381840000,-500.0,0.00013698,2]
[423748985,1780381840000,-500.0,0.00013698,2]
[423748979,1780381840000,-500.0,0.00013698,2]
[423748978,1780381840000,-500.0,0.00013698,2]
[423748973,1780381840000,-304.00289486,0.00013698,2]
[423748975,1780381840000,-374.57665174,0.00013698,2]
[423748974,1780381840000,-125.42334826,0.00013698,2]
[423748976,1780381840000,-700.51221079,0.00013698,2]
[423748983,1780381840000,-500.0,0.00013698,2]
[423748977,1780381840000,-92.99778921,0.00013698,2]
[423748981,1780381840000,-293.949433,0.00013698,2]
[423748988,1780381840000,-500.0,0.00013698,2]
[423748996,1780381840000,-501.57285853,0.00013698,2]
[423748980,1780381840000,-500.0,0.00013698,2]
[423748986,1780381840000,-500.0,0.00013698,2]
[423748992,1780381840000,-500.0,0.00013698,2]
[423748987,1780381840000,-500.0,0.00013698,2]
[423748990,1780381840000,-500.0,0.00013698,2]
[423748991,1780381840000,-500.0,0.00013698,2]
[423748989,1780381840000,-500.0,0.00013698,2]
[423748994,1780381840000,-500.0,0.00013698,2]
[423748993,1780381840000,-500.0,0.00013698,2]
[423748995,1780381840000,-500.0,0.00013698,2]
[423748984,1780381840000,-500.0,0.00013698,2]
[423749026,1780381841000,-501.5152295,0.00013698,2]
[423749024,1780381841000,-500.0,0.00013698,2]
[423749030,1780381841000,-500.0,0.00013698,2]
[423749039,1780381841000,-500.0,0.00013698,2]
[423749020,1780381841000,-500.0,0.00013698,2]
[423749014,1780381841000,-500.0,0.00013698,2]
[423749023,1780381841000,-500.0,0.00013698,2]
[423749027,1780381841000,-501.61228547,0.00013698,2]
[423749022,1780381841000,-500.0,0.00013698,2]
[423749033,1780381841000,-500.0,0.00013698,2]
[423749025,1780381841000,-500.0,0.00013698,2]
[423749028,1780381841000,-500.0,0.00013698,2]
[423749029,1780381841000,-500.0,0.00013698,2]
[423749031,1780381841000,-500.0,0.00013698,2]
[423749013,1780381841000,-500.0,0.00013698,2]
[423749034,1780381841000,-500.0,0.00013698,2]
[423749032,1780381841000,-500.0,0.00013698,2]
[423749037,1780381841000,-500.0,0.00013698,2]
[423749021,1780381841000,-500.0,0.00013698,2]
[423749012,1780381841000,-500.0,0.00013698,2]
[423749008,1780381841000,-500.0,0.00013698,2]
[423749006,1780381841000,-500.0,0.00013698,2]
[423749005,1780381841000,-500.0,0.00013698,2]
[423749004,1780381841000,-500.0,0.00013698,2]
[423748999,1780381841000,-500.0,0.00013698,2]
[423749000,1780381841000,-500.0,0.00013698,2]
[423748997,1780381841000,-500.0,0.00013698,2]
[423748998,1780381841000,-500.0,0.00013698,2]
[423749001,1780381841000,-220.30622806,0.00013698,2]
[423749002,1780381841000,-500.0,0.00013698,2]
[423749003,1780381841000,-500.0,0.00013698,2]
[423749009,1780381841000,-500.0,0.00013698,2]
[423749017,1780381841000,-500.0,0.00013698,2]
[423749015,1780381841000,-500.0,0.00013698,2]
[423749019,1780381841000,-500.0,0.00013698,2]
[423749016,1780381841000,-500.0,0.00013698,2]
[423749011,1780381841000,-152.27590531,0.00013698,2]
[423749007,1780381841000,-500.0,0.00013698,2]
[423749018,1780381841000,-500.0,0.00013698,2]
[423749010,1780381841000,-500.0,0.00013698,2]
[423749042,1780381841000,-506.5906847,0.00013698,2]
[423749056,1780381841000,-502.52098636,0.00013698,2]
[423749038,1780381841000,-500.0,0.00013698,2]
[423749069,1780381841000,-500.0,0.00013698,2]
[423749070,1780381841000,-511.6,0.00013698,2]
[423749062,1780381841000,-500.0,0.00013698,2]
[423749063,1780381841000,-500.0,0.00013698,2]
[423749068,1780381841000,-502.78289843,0.00013698,2]
[423749061,1780381841000,-500.0,0.00013698,2]
[423749065,1780381841000,-500.0,0.00013698,2]
[423749067,1780381841000,-500.0,0.00013698,2]
[423749064,1780381841000,-500.0,0.00013698,2]
[423749071,1780381841000,-546.94,0.00013698,2]
[423749072,1780381841000,-500.0,0.00013698,2]
[423749074,1780381841000,-500.67336845,0.00013698,2]
[423749075,1780381841000,-501.17891142,0.00013698,2]
[423749076,1780381841000,-500.0,0.00013698,2]
[423749078,1780381841000,-500.0,0.00013698,2]
[423749077,1780381841000,-500.0,0.00013698,2]
[423749079,1780381841000,-9.05201152,0.00013698,2]
[423749035,1780381841000,-500.0,0.00013698,2]
[423749073,1780381841000,-500.0,0.00013698,2]
[423749066,1780381841000,-500.0,0.00013698,2]
[423749059,1780381841000,-500.0,0.00013698,2]
[423749053,1780381841000,-500.0,0.00013698,2]
[423749041,1780381841000,-525.12,0.00013698,2]
[423749040,1780381841000,-500.0,0.00013698,2]
[423749047,1780381841000,-502.39696297,0.00013698,2]
[423749045,1780381841000,-503.28029967,0.00013698,2]
[423749054,1780381841000,-194.22421446,0.00013698,2]
[423749055,1780381841000,-500.0,0.00013698,2]
[423749060,1780381841000,-500.0,0.00013698,2]
[423749044,1780381841000,-500.0,0.00013698,2]
[423749080,1780381841000,-403.23498134,0.00013698,2]
[423749049,1780381841000,-500.0,0.00013698,2]
[423749046,1780381841000,-500.0,0.00013698,2]
[423749050,1780381841000,-501.6709038,0.00013698,2]
[423749052,1780381841000,-500.0,0.00013698,2]
[423749048,1780381841000,-500.0,0.00013698,2]
[423749051,1780381841000,-500.0,0.00013698,2]
[423749057,1780381841000,-440.95048802,0.00013698,2]
[423749058,1780381841000,-503.40854112,0.00013698,2]
[423749043,1780381841000,-883.38,0.00013698,2]
[423749036,1780381841000,-500.0,0.00013698,2]
[423749204,1780381843000,-500.0,0.00013698,2]
[423749207,1780381843000,-500.0,0.00013698,2]
[423749206,1780381843000,-500.0,0.00013698,2]
[423749211,1780381843000,-500.0,0.00013698,2]
[423749200,1780381843000,-87.71300714,0.00013698,2]
[423749209,1780381843000,-500.0,0.00013698,2]
[423749202,1780381843000,-500.0,0.00013698,2]
[423749281,1780381844000,-500.0,0.00013698,2]
[423749252,1780381844000,-500.0,0.00013698,2]
[423749242,1780381844000,-500.0,0.00013698,2]
[423749240,1780381844000,-500.0,0.00013698,2]
[423749256,1780381844000,-500.0,0.00013698,2]
[423749254,1780381844000,-500.0,0.00013698,2]
[423749243,1780381844000,-500.0,0.00013698,2]
[423749258,1780381844000,-502.02473493,0.00013698,2]
[423749263,1780381844000,-500.0,0.00013698,2]
[423749265,1780381844000,-500.0,0.00013698,2]
[423749267,1780381844000,-3381.62,0.00013698,2]
[423749269,1780381844000,-537.32,0.00013698,2]
[423749279,1780381844000,-500.0,0.00013698,2]
[423749260,1780381844000,-500.0,0.00013698,2]
[423749251,1780381844000,-1850.09,0.00013698,2]
[423749261,1780381844000,-500.0,0.00013698,2]
[423749249,1780381844000,-500.0,0.00013698,2]
[423749247,1780381844000,-500.0,0.00013698,2]
[423749272,1780381844000,-500.0,0.00013698,2]
[423749223,1780381844000,-500.0,0.00013698,2]
[423749215,1780381844000,-514.79319145,0.00013698,2]
[423749228,1780381844000,-500.0,0.00013698,2]
[423749217,1780381844000,-186.10545649,0.00013698,2]
[423749221,1780381844000,-500.0,0.00013698,2]
[423749227,1780381844000,-500.0,0.00013698,2]
[423749213,1780381844000,-500.0,0.00013698,2]
[423749225,1780381844000,-500.0,0.00013698,2]
[423749230,1780381844000,-500.0,0.00013698,2]
[423749219,1780381844000,-313.89454351,0.00013698,2]
[423749232,1780381844000,-500.0,0.00013698,2]
[423749234,1780381844000,-500.0,0.00013698,2]
[423749245,1780381844000,-500.0,0.00013698,2]
[423749236,1780381844000,-500.0,0.00013698,2]
[423749238,1780381844000,-501.9589583,0.00013698,2]
[423749270,1780381844000,-500.0,0.00013698,2]
[423749320,1780381844000,-500.0,0.00013972,2]
[423749283,1780381844000,-764.65,0.00013698,2]
[423749317,1780381844000,-398.73818043,0.00013972,2]
[423749315,1780381844000,-922.11884772,0.00013972,2]
[423749328,1780381844000,-500.0,0.00013972,2]
[423749327,1780381844000,-500.0,0.00013972,2]
[423749331,1780381844000,-228.93506365,0.00013972,2]
[423749344,1780381844000,-300.92366106,0.00013972,2]
[423749346,1780381844000,-500.0,0.00013972,2]
[423749333,1780381844000,-271.06493635,0.00013972,2]
[423749349,1780381844000,-501.17165467,0.00013972,2]
[423749336,1780381844000,-500.0,0.00013972,2]
[423749338,1780381844000,-500.0,0.00013972,2]
[423749335,1780381844000,-608.16755628,0.00013972,2]
[423749351,1780381844000,-298.96557759,0.00013972,2]
[423749340,1780381844000,-500.0,0.00013972,2]
[423749274,1780381844000,-500.0,0.00013698,2]
[423749322,1780381844000,-500.0,0.00013972,2]
[423749342,1780381844000,-500.0,0.00013972,2]
[423749347,1780381844000,-500.0,0.00013972,2]
[423749312,1780381844000,-738.18115228,0.00013972,2]
[423749324,1780381844000,-500.0,0.00013972,2]
[423749294,1780381844000,-500.0,0.00013698,2]
[423749298,1780381844000,-504.04183069,0.00013698,2]
[423749296,1780381844000,-500.0,0.00013698,2]
[423749300,1780381844000,-500.0,0.00013698,2]
[423749287,1780381844000,-725.83,0.00013698,2]
[423749289,1780381844000,-500.0,0.00013698,2]
[423749293,1780381844000,-500.0,0.00013698,2]
[423749291,1780381844000,-500.0,0.00013698,2]
[423749285,1780381844000,-500.0,0.00013698,2]
[423749304,1780381844000,-500.0,0.00013698,2]
[423749306,1780381844000,-510.46268296,0.00013698,2]
[423749308,1780381844000,-250.0,0.00013821,2]
[423749310,1780381844000,-171.25012711,0.00013872,2]
[423749302,1780381844000,-500.0,0.00013698,2]
[423749318,1780381844000,-500.0,0.00013972,2]
[423749422,1780381846000,-500.0,0.00013972,2]
[423749420,1780381846000,-500.0,0.00013972,2]
[423749432,1780381846000,-500.0,0.00013972,2]
[423749430,1780381846000,-500.0,0.00013972,2]
[423749424,1780381846000,-515.79773657,0.00013972,2]
[423749421,1780381846000,-500.0,0.00013972,2]
[423749415,1780381846000,-500.0,0.00013972,2]
[423749425,1780381846000,-500.0,0.00013972,2]
[423749431,1780381846000,-500.0,0.00013972,2]
[423749412,1780381846000,-500.0,0.00013972,2]
[423749416,1780381846000,-500.0,0.00013972,2]
[423749413,1780381846000,-500.0,0.00013972,2]
[423749414,1780381846000,-586.29499179,0.00013972,2]
[423749411,1780381846000,-500.0,0.00013972,2]
[423749417,1780381846000,-500.0,0.00013972,2]
[423749408,1780381846000,-500.0,0.00013972,2]
[423749410,1780381846000,-500.0,0.00013972,2]
[423749409,1780381846000,-500.0,0.00013972,2]
[423749407,1780381846000,-500.0,0.00013972,2]
[423749405,1780381846000,-277.63350926,0.00013698,2]
[423749418,1780381846000,-500.0,0.00013972,2]
[423749419,1780381846000,-500.0,0.00013972,2]
[423749406,1780381846000,-201.03442241,0.00013972,2]
[423749423,1780381846000,-500.0,0.00013972,2]
[423749426,1780381846000,-500.0,0.00013972,2]
[423749449,1780381846000,-500.0,0.00013972,2]
[423749450,1780381846000,-500.0,0.00013972,2]
[423749447,1780381846000,-500.0,0.00013972,2]
[423749444,1780381846000,-500.0,0.00013972,2]
[423749448,1780381846000,-500.0,0.00013972,2]
[423749445,1780381846000,-500.0,0.00013972,2]
[423749443,1780381846000,-500.0,0.00013972,2]
[423749434,1780381846000,-500.0,0.00013972,2]
[423749442,1780381846000,-500.0,0.00013972,2]
[423749446,1780381846000,-500.0,0.00013972,2]
[423749440,1780381846000,-500.0,0.00013972,2]
[423749441,1780381846000,-500.0,0.00013972,2]
[423749439,1780381846000,-197.51561021,0.00013972,2]
[423749436,1780381846000,-500.0,0.00013972,2]
[423749438,1780381846000,-500.0,0.00013972,2]
[423749435,1780381846000,-500.0,0.00013972,2]
[423749433,1780381846000,-500.0,0.00013972,2]
[423749429,1780381846000,-500.0,0.00013972,2]
[423749427,1780381846000,-500.0,0.00013972,2]
[423749437,1780381846000,-151.0,0.00013972,2]
[423749428,1780381846000,-500.0,0.00013972,2]
[423749456,1780381847000,-500.0,0.00013972,2]
[423749459,1780381847000,-500.0,0.00013972,2]
[423749463,1780381847000,-500.0,0.00013972,2]
[423749454,1780381847000,-500.0,0.00013972,2]
[423749466,1780381847000,-508.24,0.00013972,2]
[423749451,1780381847000,-500.0,0.00013972,2]
[423749455,1780381847000,-500.0,0.00013972,2]
[423749453,1780381847000,-500.0,0.00013972,2]
[423749452,1780381847000,-500.0,0.00013972,2]
[423749460,1780381847000,-500.0,0.00013972,2]
[423749465,1780381847000,-500.0,0.00013972,2]
[423749457,1780381847000,-1000.0,0.00013972,2]
[423749473,1780381847000,-423.38340136,0.00013972,2]
[423749458,1780381847000,-500.0,0.00013972,2]
[423749464,1780381847000,-501.89491865,0.00013972,2]
[423749461,1780381847000,-500.0,0.00013972,2]
[423749468,1780381847000,-94.19831268,0.00013972,2]
[423749467,1780381847000,-502.10096077,0.00013972,2]
[423749471,1780381847000,-500.0,0.00013972,2]
[423749470,1780381847000,-500.0,0.00013972,2]
[423749469,1780381847000,-405.80168732,0.00013972,2]
[423749474,1780381847000,-76.61659864,0.00013972,2]
[423749472,1780381847000,-500.0,0.00013972,2]
[423749475,1780381847000,-223.16085221,0.00013972,2]
[423749462,1780381847000,-500.0,0.00013972,2]
[423749478,1780381929000,-2513.41224899,0.000124,2]
[423749484,1780382124000,393.94380819,0.0002288,120]
[423749486,1780382124000,393.94380819,0.0002288,120]
[423749485,1780382124000,393.94380819,0.0002288,120]
[423749487,1780382125000,393.94380819,0.0002288,120]
[423749489,1780382125000,393.94380819,0.0002288,120]
[423749488,1780382125000,393.94380819,0.0002288,120]
[423749492,1780382126000,393.94380819,0.0002288,120]
[423749491,1780382126000,393.94380819,0.0002288,120]
[423749490,1780382126000,393.94380819,0.0002288,120]
[423749497,1780382127000,393.94380819,0.0002288,120]
[423749494,1780382127000,393.94380819,0.0002288,120]
[423749493,1780382127000,393.94380819,0.0002288,120]
[423749500,1780382128000,393.94380819,0.0002288,120]
[423749499,1780382128000,393.94380819,0.0002288,120]
[423749501,1780382129000,393.94380819,0.0002288,120]
[423749503,1780382129000,393.94380819,0.0002288,120]
[423749502,1780382129000,393.94380819,0.0002288,120]
[423749504,1780382129000,393.94380819,0.0002288,120]
[423749507,1780382130000,393.94380819,0.0002288,120]
[423749506,1780382130000,393.94380819,0.0002288,120]
[423749505,1780382130000,393.94380819,0.0002288,120]
[423749510,1780382131000,393.94380819,0.0002288,120]
[423749509,1780382131000,393.94380819,0.0002288,120]